fUSD/lending_fUSD_20240819
["ID","MTS","AMOUNT","RATE_DAILY","PERIOD"]
[335258116,1724050240670,-586.46929097,0.00010023,2]
[335258117,1724050240681,-2632.08303732,0.00010023,2]
[335258146,1724050243318,-1168.45147214,0.00010023,2]
[335258147,1724050243516,-7278.38011822,0.00010023,2]
[335258148,1724050243525,-263.36,0.00010029,2]
[335258149,1724050243534,-579.23,0.00010055,2]
[335258150,1724050243543,-790.56,0.00010055,2]
[335258152,1724050243553,-790.56,0.000101,2]
[335258153,1724050243562,-790.56,0.000101,2]
[335258154,1724050243571,-1000.0,0.00010132,2]
[335258155,1724050243581,-170.8,0.00010414,2]
[335258156,1724050243590,-291.92,0.00010473,2]
[335258157,1724050243599,-1151.87408,0.0001079,2]
[335258158,1724050243608,-1000.0,0.00010799,2]
[335258159,1724050243617,-540.17,0.0001089,2]
[335258160,1724050243626,-540.17,0.0001089,2]
[335258161,1724050243636,-540.17,0.0001089,2]
[335258162,1724050243646,-540.17,0.0001089,2]
[335258163,1724050243656,-540.17,0.0001089,2]
[335258164,1724050243665,-540.17,0.0001089,2]
[335258165,1724050243674,-540.17,0.0001089,2]
[335258167,1724050243683,-540.17,0.0001089,2]
[335258168,1724050243692,-5468.46463676,0.00010897,2]
[335258178,1724050246411,-2454.7959,0.00010798,2]
[335258179,1724050246420,-3417.6255,0.00010897,2]
[335258180,1724050602320,278.22,8.219e-05,2]
[335258181,1724050636050,946.48355637,9.177e-05,2]
[335258199,1724051005895,1000.0,9.877e-05,2]
[335258200,1724051016656,450.0,9.885e-05,2]
[335258201,1724051057294,207.46,9.872e-05,2]
[335258202,1724051073324,272.06,8.219e-05,2]
[335258203,1724051218035,250.0,9.878e-05,2]
[335258218,1724051424064,-222.54660068,9.941e-05,2]
[335258219,1724051424084,-297.68850569,9.941e-05,2]
[335258220,1724051424104,-264.66383924,9.941e-05,2]
[335258221,1724051424126,-300.0,9.963e-05,2]
[335258222,1724051424147,-3035.10105439,9.964e-05,2]
[335258228,1724051432367,-5010.11628968,9.964e-05,2]
[335258246,1724051432522,-3393.94136645,9.964e-05,2]
[335258247,1724051432534,-689.30241408,9.964e-05,2]
[335258248,1724051432566,-650.40807414,9.964e-05,2]
[335258263,1724051438467,-730.73080126,9.964e-05,2]
[335258264,1724051438477,-1074.67923523,9.988e-05,2]
[335258265,1724051438487,-151.24,9.996e-05,2]
[335258266,1724051438495,-157.51477151,9.996e-05,2]
[335258267,1724051438505,-183.72694179,9.999e-05,2]
[335258268,1724051438514,-644.46872531,9.999e-05,2]
[335258269,1724051438524,-349.5815431,0.00010009,2]
[335258270,1724051438536,-440.37857631,0.00010009,2]
[335258271,1724051438546,-380.51090251,0.00010026,2]
[335258272,1724051438555,-2502.58566001,0.00010026,2]
[335258273,1724051438566,-200.28994184,0.00010097,2]
[335258274,1724051438575,-175.65856094,0.00010097,2]
[335258275,1724051438584,-155.40319739,0.00010097,2]
[335258276,1724051438594,-272.06,0.00010471,2]
[335258277,1724051438603,-197.27215158,0.00010471,2]
[335258278,1724051438613,-155.45612317,0.00010471,2]
[335258279,1724051438623,-160.44294165,0.00010471,2]
[335258280,1724051438632,-150.0,0.00010504,2]
[335258281,1724051438641,-2304.07,0.00010505,2]
[335258282,1724051438651,-485.4249704,0.00010505,2]
[335258283,1724051438660,-155.16651233,0.00010505,2]
[335258284,1724051438669,-427.95554435,0.00010505,2]
[335258285,1724051438679,-3877.17064099,0.00010699,2]
[335258286,1724051438689,-328.2488375,0.00010699,2]
[335258287,1724051438698,-892.72350459,0.00010699,2]
[335258288,1724051438708,-357.4813523,0.00010713,2]
[335258289,1724051438717,-1427.66938,0.0001079,2]
[335258290,1724051438726,-3237.833,0.00010799,2]
[335258291,1724051438735,-5334.18870518,0.00010799,2]
[335258292,1724051438745,-735.43153645,0.000108,2]
[335258293,1724051438753,-340.1822795,0.000108,2]
[335258294,1724051438763,-735.43153645,0.00010849,2]
[335258295,1724051438772,-152.89582722,0.00010849,2]
[335258296,1724051438782,-299.99,0.00010852,2]
[335258297,1724051438791,-15483.10746637,0.00010861,2]
[335258298,1724051438801,-155.0,0.00010862,2]
[335258299,1724051438810,-496.52,0.0001089,2]
[335258300,1724051438820,-496.52,0.0001089,2]
[335258301,1724051438829,-496.52,0.0001089,2]
[335258302,1724051438838,-496.52,0.0001089,2]
[335258303,1724051438847,-496.52,0.0001089,2]
[335258304,1724051438857,-496.52,0.0001089,2]
[335258305,1724051438867,-496.52,0.0001089,2]
[335258306,1724051438876,-496.52,0.0001089,2]
[335258307,1724051438885,-496.52,0.0001089,2]
[335258308,1724051438895,-628.70277812,0.0001089,2]
[335258309,1724051438905,-50344.63144669,0.00010897,2]
[335258310,1724051438915,-162.7975553,0.00010897,2]
[335258311,1724051438924,-341.14193703,0.00010897,4]
[335258312,1724051438934,-300.13681126,0.00010897,2]
[335258314,1724051438943,-735.43153645,0.00010897,2]
[335258315,1724051438953,-268.27110458,0.00010897,2]
[335258316,1724051438963,-522.45594701,0.00010898,2]
[335258317,1724051438972,-505.9547996,0.00010898,2]
[335258318,1724051438981,-584.97,0.00010898,2]
[335258319,1724051438990,-500.0,0.00010898,2]
[335258320,1724051439000,-509.76245111,0.00010898,2]
[335258321,1724051439010,-500.0,0.00010898,2]
[335258322,1724051439019,-500.0,0.00010898,2]
[335258323,1724051439029,-510.1066383,0.00010898,2]
[335258324,1724051439038,-500.0,0.00010898,2]
[335258325,1724051439048,-500.0,0.00010898,2]
[335258326,1724051439057,-569.89571444,0.00010898,2]
[335258327,1724051439067,-500.0,0.00010898,2]
[335258328,1724051439076,-500.0,0.00010898,2]
[335258329,1724051439085,-372.54719705,0.00010898,2]
[335258330,1724051439094,-500.0,0.00010898,2]
[335258331,1724051439105,-500.0,0.00010898,2]
[335258332,1724051439114,-532.99255921,0.00010898,2]
[335258333,1724051439124,-500.0,0.00010898,2]
[335258334,1724051439134,-500.0,0.00010898,2]
[335258335,1724051439143,-516.59742313,0.00010898,2]
[335258336,1724051439153,-500.0,0.00010898,2]
[335258337,1724051439163,-500.0,0.00010898,2]
[335258338,1724051439173,-500.0,0.00010898,2]
[335258339,1724051439183,-500.0,0.00010898,2]
[335258340,1724051439192,-500.0,0.00010898,2]
[335258341,1724051439201,-500.0,0.00010898,2]
[335258342,1724051439213,-503.97915172,0.00010898,2]
[335258343,1724051439223,-500.0,0.00010898,2]
[335258344,1724051439232,-543.45554244,0.00010898,2]
[335258345,1724051439241,-500.0,0.00010898,2]
[335258346,1724051439250,-2233.47,0.00010898,2]
[335258347,1724051439259,-500.0,0.00010898,2]
[335258348,1724051439268,-500.0,0.00010898,2]
[335258349,1724051439277,-500.0,0.00010898,2]
[335258350,1724051439286,-500.0,0.00010898,2]
[335258351,1724051439296,-500.0,0.00010898,2]
[335258352,1724051439305,-560.37099113,0.00010898,2]
[335258353,1724051439317,-532.30948437,0.00010898,2]
[335258354,1724051439326,-1535.49,0.00010898,2]
[335258355,1724051439335,-529.25254732,0.00010898,2]
[335258356,1724051439344,-524.98138057,0.00010898,2]
[335258357,1724051439354,-575.17117722,0.00010898,2]
[335258358,1724051439363,-500.0,0.00010898,2]
[335258359,1724051439373,-500.0,0.00010898,2]
[335258360,1724051439382,-4483.54,0.00010898,2]
[335258361,1724051439393,-500.0,0.00010898,2]
[335258362,1724051439402,-500.0,0.00010898,2]
[335258363,1724051439411,-503.10496824,0.00010898,2]
[335258364,1724051439422,-1365.25,0.00010898,2]
[335258365,1724051439432,-1606.16,0.00010898,2]
[335258366,1724051439442,-500.0,0.00010898,2]
[335258367,1724051439453,-500.0,0.00010898,2]
[335258368,1724051439463,-500.0,0.00010898,2]
[335258369,1724051439472,-500.0,0.00010898,2]
[335258370,1724051439481,-500.0,0.00010898,2]
[335258371,1724051439490,-500.0,0.00010898,2]
[335258372,1724051439499,-500.0,0.00010898,2]
[335258373,1724051439508,-973.42,0.00010898,2]
[335258374,1724051439517,-500.0,0.00010898,2]
[335258375,1724051439527,-1216.4,0.00010898,2]
[335258376,1724051439537,-500.0,0.00010898,2]
[335258377,1724051439546,-3823.67,0.00010898,2]
[335258378,1724051439556,-1604.19,0.00010898,2]
[335258379,1724051439566,-500.0,0.00010898,2]
[335258380,1724051439575,-500.0,0.00010898,2]
[335258381,1724051439584,-598.85,0.00010898,2]
[335258382,1724051439592,-500.0,0.00010898,2]
[335258383,1724051439602,-500.0,0.00010898,2]
[335258384,1724051439611,-500.0,0.00010898,2]
[335258385,1724051439622,-500.0,0.00010898,2]
[335258386,1724051439632,-500.0,0.00010898,2]
[335258387,1724051439641,-19088.47,0.00010898,2]
[335258388,1724051439652,-2611.3,0.00010898,2]
[335258389,1724051439662,-1808.07,0.00010898,2]
[335258390,1724051439671,-1668.85,0.00010898,2]
[335258391,1724051439680,-500.0,0.00010898,2]
[335258392,1724051439689,-500.0,0.00010898,2]
[335258393,1724051439699,-500.0,0.00010898,2]
[335258394,1724051439710,-1529.93,0.00010898,2]
[335258395,1724051439720,-896.35,0.00010898,2]
[335258396,1724051439732,-584.97,0.00010899,2]
[335258397,1724051439744,-584.97,0.00010899,2]
[335258398,1724051439754,-584.97,0.00010899,2]
[335258399,1724051439763,-500.0,0.00010899,2]
[335258400,1724051439773,-500.0,0.00010899,2]
[335258401,1724051439782,-500.0,0.00010899,2]
[335258402,1724051439791,-514.30186464,0.00010899,2]
[335258403,1724051439801,-500.0,0.00010899,2]
[335258404,1724051439811,-500.0,0.00010899,2]
[335258405,1724051439821,-500.0,0.00010899,2]
[335258406,1724051439831,-500.0,0.00010899,2]
[335258407,1724051439840,-500.0,0.00010899,2]
[335258408,1724051439850,-500.0,0.00010899,2]
[335258409,1724051439860,-500.0,0.00010899,2]
[335258410,1724051439870,-537.68636191,0.00010899,2]
[335258411,1724051439881,-515.7572957,0.00010899,2]
[335258412,1724051439890,-500.0,0.00010899,2]
[335258413,1724051439900,-447.63305194,0.00010899,2]
[335258414,1724051439910,-500.0,0.00010899,2]
[335258415,1724051439919,-500.0,0.00010899,2]
[335258416,1724051439928,-500.0,0.00010899,2]
[335258417,1724051439937,-500.0,0.00010899,2]
[335258418,1724051439947,-500.0,0.00010899,2]
[335258419,1724051439956,-500.0,0.00010899,2]
[335258420,1724051439965,-500.0,0.00010899,2]
[335258421,1724051439974,-500.0,0.00010899,2]
[335258422,1724051439984,-500.0,0.00010899,2]
[335258423,1724051439994,-500.0,0.00010899,2]
[335258424,1724051440003,-500.0,0.00010899,2]
[335258425,1724051440013,-500.0,0.00010899,2]
[335258426,1724051440022,-500.0,0.00010899,2]
[335258427,1724051440032,-500.0,0.00010899,2]
[335258428,1724051440040,-500.0,0.00010899,2]
[335258429,1724051440050,-500.0,0.00010899,2]
[335258430,1724051440058,-500.0,0.00010899,2]
[335258431,1724051440067,-500.0,0.00010899,2]
[335258432,1724051440076,-500.0,0.00010899,2]
[335258433,1724051440086,-500.0,0.00010899,2]
[335258434,1724051440095,-500.0,0.00010899,2]
[335258435,1724051440104,-500.0,0.00010899,2]
[335258436,1724051440113,-500.0,0.00010899,2]
[335258437,1724051440122,-239.11258398,0.00010899,2]
[335258438,1724051440133,-500.0,0.00010899,2]
[335258439,1724051440141,-500.0,0.00010899,2]
[335258440,1724051440151,-246.00388412,0.00010899,2]
[335258441,1724051440160,-500.0,0.00010899,2]
[335258442,1724051440169,-2233.47,0.00010899,2]
[335258443,1724051440178,-2233.47,0.00010899,2]
[335258444,1724051440187,-500.0,0.00010899,2]
[335258445,1724051440196,-2233.47,0.00010899,2]
[335258446,1724051440205,-500.0,0.00010899,2]
[335258447,1724051440214,-500.0,0.00010899,2]
[335258448,1724051440223,-304.46305339,0.00010899,2]
[335258449,1724051440233,-500.0,0.00010899,2]
[335258450,1724051440242,-500.0,0.00010899,2]
[335258451,1724051440251,-500.0,0.00010899,2]
[335258452,1724051440260,-500.0,0.00010899,2]
[335258453,1724051440270,-500.0,0.00010899,2]
[335258454,1724051440279,-500.0,0.00010899,2]
[335258455,1724051440288,-500.0,0.00010899,2]
[335258456,1724051440297,-500.0,0.00010899,2]
[335258457,1724051440307,-500.0,0.00010899,2]
[335258458,1724051440317,-1535.49,0.00010899,2]
[335258460,1724051440327,-1535.49,0.00010899,2]
[335258461,1724051440335,-1535.49,0.00010899,2]
[335258462,1724051440344,-500.0,0.00010899,2]
[335258463,1724051440353,-500.0,0.00010899,2]
[335258464,1724051440363,-500.0,0.00010899,2]
[335258465,1724051440372,-500.0,0.00010899,2]
[335258466,1724051440382,-500.0,0.00010899,2]
[335258467,1724051440391,-500.0,0.00010899,2]
[335258468,1724051440403,-4483.54,0.00010899,2]
[335258469,1724051440412,-4483.54,0.00010899,2]
[335258470,1724051440422,-4483.54,0.00010899,2]
[335258471,1724051440431,-264.62623659,0.00010899,2]
[335258472,1724051440440,-1365.25,0.00010899,2]
[335258473,1724051440448,-1365.25,0.00010899,2]
[335258474,1724051440458,-1365.25,0.00010899,2]
[335258475,1724051440467,-1606.16,0.00010899,2]
[335258476,1724051440476,-1606.16,0.00010899,2]
[335258477,1724051440485,-1606.16,0.00010899,2]
[335258478,1724051440494,-500.0,0.00010899,2]
[335258479,1724051440503,-500.0,0.00010899,2]
[335258480,1724051440512,-500.0,0.00010899,2]
[335258481,1724051440521,-500.0,0.00010899,2]
[335258482,1724051440532,-500.0,0.00010899,2]
[335258483,1724051440541,-500.0,0.00010899,2]
[335258484,1724051440550,-500.0,0.00010899,2]
[335258485,1724051440559,-500.0,0.00010899,2]
[335258486,1724051440568,-500.0,0.00010899,2]
[335258487,1724051440577,-500.0,0.00010899,2]
[335258488,1724051440586,-500.0,0.00010899,2]
[335258489,1724051440595,-500.0,0.00010899,2]
[335258490,1724051440604,-500.0,0.00010899,2]
[335258491,1724051440613,-538.75505118,0.00010899,2]
[335258492,1724051440622,-416.03,0.00010899,2]
[335258493,1724051440632,-973.42,0.00010899,2]
[335258494,1724051440641,-973.42,0.00010899,2]
[335258495,1724051440649,-973.42,0.00010899,2]
[335258496,1724051440658,-500.0,0.00010899,2]
[335258497,1724051440667,-500.0,0.00010899,2]
[335258498,1724051440676,-500.0,0.00010899,2]
[335258499,1724051440685,-1216.4,0.00010899,2]
[335258500,1724051440694,-1216.4,0.00010899,2]
[335258501,1724051440703,-1216.4,0.00010899,2]
[335258502,1724051440711,-500.0,0.00010899,2]
[335258503,1724051440720,-500.0,0.00010899,2]
[335258504,1724051440729,-500.0,0.00010899,2]
[335258505,1724051440738,-3823.67,0.00010899,2]
[335258506,1724051440747,-3823.67,0.00010899,2]
[335258507,1724051440756,-3823.67,0.00010899,2]
[335258508,1724051440765,-1604.19,0.00010899,2]
[335258509,1724051440774,-1604.19,0.00010899,2]
[335258510,1724051440783,-1604.19,0.00010899,2]
[335258511,1724051440792,-500.0,0.00010899,2]
[335258512,1724051440801,-500.0,0.00010899,2]
[335258513,1724051440810,-500.0,0.00010899,2]
[335258514,1724051440819,-500.0,0.00010899,2]
[335258515,1724051440828,-500.0,0.00010899,2]
[335258516,1724051440838,-500.0,0.00010899,2]
[335258517,1724051440847,-598.85,0.00010899,2]
[335258518,1724051440856,-598.85,0.00010899,2]
[335258519,1724051440865,-598.85,0.00010899,2]
[335258520,1724051440875,-500.0,0.00010899,2]
[335258521,1724051440885,-500.0,0.00010899,2]
[335258522,1724051440894,-500.0,0.00010899,2]
[335258523,1724051441050,-184.95766046,0.00010899,2]
[335258524,1724051441060,-163.10704993,0.00010899,2]
[335258525,1724051441069,-500.0,0.00010899,2]
[335258526,1724051441078,-500.0,0.00010899,2]
[335258527,1724051441087,-500.0,0.00010899,2]
[335258528,1724051441097,-500.0,0.00010899,2]
[335258529,1724051441106,-500.0,0.00010899,2]
[335258530,1724051441115,-500.0,0.00010899,2]
[335258531,1724051441125,-19088.47,0.00010899,2]
[335258533,1724051441134,-19088.47,0.00010899,2]
[335258534,1724051441143,-19088.47,0.00010899,2]
[335258535,1724051441152,-2611.3,0.00010899,2]
[335258536,1724051441162,-2611.3,0.00010899,2]
[335258537,1724051441171,-2611.3,0.00010899,2]
[335258538,1724051441180,-1808.07,0.00010899,2]
[335258539,1724051441190,-1808.07,0.00010899,2]
[335258540,1724051441200,-1808.07,0.00010899,2]
[335258541,1724051441210,-1668.85,0.00010899,2]
[335258542,1724051441220,-1668.85,0.00010899,2]
[335258543,1724051441231,-1668.85,0.00010899,2]
[335258544,1724051441241,-500.0,0.00010899,2]
[335258545,1724051441251,-500.0,0.00010899,2]
[335258546,1724051441262,-500.0,0.00010899,2]
[335258547,1724051441271,-500.0,0.00010899,2]
[335258548,1724051441279,-500.0,0.00010899,2]
[335258549,1724051441289,-382.43,0.00010899,2]
[335258550,1724051441298,-1529.93,0.00010899,2]
[335258551,1724051441307,-1529.93,0.00010899,2]
[335258552,1724051441319,-1529.93,0.00010899,2]
[335258553,1724051441331,-896.35,0.00010899,2]
[335258554,1724051441343,-896.35,0.00010899,2]
[335258555,1724051441353,-896.35,0.00010899,2]
[335258556,1724051441363,-2854.3570855,0.000109,2]
[335258557,1724051441372,-44493.58471165,0.000109,2]
[335258558,1724051441388,-290.305015,0.000109,2]
[335258559,1724051441407,-296.423282,0.00010898,2]
[335258560,1724051441419,-203.576718,0.00010898,2]
[335258561,1724051441428,-3915.02558614,0.000109,2]
[335258562,1724051441440,-1024.42347234,0.000109,2]
[335258563,1724051441516,-155.0,9.999e-05,2]
[335258564,1724051441526,-320.77953073,0.00010026,2]
[335258565,1724051441537,-500.0,0.00010899,2]
[335258566,1724051441546,-500.0,0.00010899,2]
[335258567,1724051441557,-500.0,0.00010899,2]
[335258568,1724051441566,-14999.28727879,0.000109,2]
[335258575,1724051443607,-347.51379482,0.00010097,2]
[335258576,1724051443617,-2305.81449822,0.000109,2]
[335258577,1724051443648,-1066.32182804,0.000109,2]
[335258614,1724051444272,-2223.97744248,0.000109,2]
[335258847,1724051446604,-619.58566799,0.00010899,2]
[335258849,1724051446614,-29.09917451,0.000109,2]
[335258855,1724051446662,-880.2,0.000109,2]
[335260243,1724051684469,260.34,8.219e-05,2]
[335260244,1724051753829,200.0,0.000179,120]
[335260246,1724051966980,485.4249704,9.899e-05,2]
[335260247,1724051997492,197.03825122,9.899e-05,2]
[335260248,1724052139775,500.0,9.109e-05,2]
[335260249,1724052261897,255.06,8.219e-05,2]
[335260250,1724052321718,150.0,9.789e-05,2]
[335260252,1724052445665,504.84607367,8.893e-05,2]
[335260253,1724052519807,207.46,9.847e-05,2]
[335260254,1724052551407,200.0,9.861e-05,2]
[335260256,1724052564572,-281.51354662,9.908e-05,2]
[335260260,1724052568582,151.24,9.856e-05,2]
[335260263,1724052617569,160.0,9.9e-05,2]
[335260272,1724052631626,-518.48645338,9.908e-05,2]
[335260273,1724052631636,-170.81,9.92e-05,2]
[335260274,1724052631647,-189.94673191,9.929e-05,2]
[335260275,1724052631658,-60.05326809,9.929e-05,2]
[335260276,1724052631667,-240.93,9.971e-05,2]
[335260277,1724052631677,-77.27282415,9.979e-05,2]
[335260278,1724052631693,-222.72717585,9.979e-05,2]
[335260279,1724052631703,-16310.49128502,9.98e-05,2]
[335260280,1724052631713,-378.04,0.0001,2]
[335260281,1724052631723,-550.0,0.0001,2]
[335260282,1724052631734,-5420.80296546,0.0001,2]
[335260283,1724052631743,-367.9111147,0.00010026,2]
[335260284,1724052631752,-255.06,0.00010472,2]
[335260285,1724052631761,-1158.0,0.000106,2]
[335260286,1724052631773,-303.83337268,0.00010699,2]
[335260287,1724052631782,-178.35013,0.0001079,2]
[335260288,1724052631792,-150.0,0.00010797,2]
[335260289,1724052631802,-1000.0,0.00010798,2]
[335260290,1724052631812,-1831.4428,0.00010798,2]
[335260291,1724052631822,-1268.6262,0.00010798,2]
[335260292,1724052631831,-3314.5799,0.00010798,2]
[335260293,1724052631841,-2024.94620947,0.00010798,2]
[335260294,1724052631853,-292.78629053,0.00010798,2]
[335260295,1724052631862,-500.0,0.00010799,2]
[335260296,1724052631872,-2107.21370947,0.00010799,2]
[335260297,1724052631883,-1300.99,0.00010799,2]
[335260298,1724052631894,-1070.57254291,0.00010799,2]
[335260299,1724052631904,-1728.39618865,0.00010799,2]
[335260300,1724052631921,-396.3606506,0.00010799,2]
[335260301,1724052631934,-429.8742519,0.00010799,2]
[335260329,1724052637658,-1221.08537832,0.00010799,2]
[335260330,1724052637942,-32924.59787815,0.00010799,2]
[335260331,1724052637952,-392.2736732,0.00010799,2]
[335260332,1724052637961,-44909.9398,0.000108,2]
[335260333,1724052637970,-801.5619,0.000108,2]
[335260334,1724052637980,-3767.982,0.000108,2]
[335260335,1724052637989,-249.7163439,0.00010861,2]
[335260336,1724052637998,-380.51090251,0.00010862,2]
[335260337,1724052638007,-155.0,0.00010862,2]
[335260338,1724052638016,-150.0,0.00010868,2]
[335260339,1724052638026,-157.06540395,0.00010888,2]
[335260340,1724052638035,-441.53254269,0.0001089,2]
[335260341,1724052638045,-500.0,0.00010894,2]
[335260342,1724052638056,-1274.94,0.00010897,2]
[335260343,1724052638067,-500.0,0.00010897,2]
[335260344,1724052638076,-1338.46,0.00010897,2]
[335260345,1724052638085,-3736.28,0.00010897,2]
[335260346,1724052638094,-1137.71,0.00010897,2]
[335260347,1724052638104,-500.0,0.00010897,2]
[335260348,1724052638113,-1336.82,0.00010897,2]
[335260349,1724052638122,-500.0,0.00010897,2]
[335260350,1724052638133,-500.0,0.00010897,2]
[335260351,1724052638143,-500.0,0.00010897,2]
[335260352,1724052638153,-1013.67,0.00010897,2]
[335260353,1724052638164,-811.19,0.00010897,2]
[335260354,1724052638172,-500.0,0.00010897,2]
[335260355,1724052638181,-500.0,0.00010897,2]
[335260356,1724052638191,-3186.4,0.00010897,2]
[335260357,1724052638200,-500.0,0.00010897,2]
[335260358,1724052638209,-500.0,0.00010897,2]
[335260359,1724052638219,-2176.08,0.00010897,2]
[335260360,1724052638229,-500.0,0.00010897,2]
[335260361,1724052638238,-15907.06,0.00010897,2]
[335260362,1724052638247,-1506.72,0.00010897,2]
[335260363,1724052638257,-500.0,0.00010897,2]
[335260364,1724052638266,-500.0,0.00010897,2]
[335260365,1724052638275,-746.95,0.00010897,2]
[335260366,1724052638285,-165.46641704,0.00010897,2]
[335260367,1724052638294,-499.5112361,0.00010898,2]
[335260368,1724052638304,-304.20114233,0.00010898,2]
[335260369,1724052638314,-491.62385957,0.00010898,2]
[335260370,1724052638325,-305.82063189,0.00010898,2]
[335260371,1724052638334,-500.67285611,0.00010898,2]
[335260372,1724052638345,-510.72087535,0.00010898,2]
[335260373,1724052638354,-500.82389998,0.00010898,2]
[335260374,1724052638364,-505.70508212,0.00010898,2]
[335260375,1724052638374,-512.39152714,0.00010898,2]
[335260376,1724052638383,-509.95131418,0.00010898,2]
[335260377,1724052638392,-500.0,0.00010898,2]
[335260378,1724052638402,-500.0,0.00010898,2]
[335260379,1724052638411,-500.0,0.00010898,2]
[335260380,1724052638421,-335.48603278,0.00010898,2]
[335260381,1724052638430,-500.0,0.00010898,2]
[335260382,1724052638440,-500.0,0.00010898,2]
[335260383,1724052638450,-500.0,0.00010898,2]
[335260384,1724052638459,-518.41882067,0.00010898,2]
[335260385,1724052638469,-500.0,0.00010898,2]
[335260386,1724052638478,-508.62224011,0.00010898,2]
[335260387,1724052638488,-500.0,0.00010898,2]
[335260388,1724052638497,-500.0,0.00010898,2]
[335260389,1724052638508,-500.0,0.00010898,2]
[335260390,1724052638517,-507.43352648,0.00010898,2]
[335260391,1724052638526,-367.42943899,0.00010898,2]
[335260392,1724052638535,-500.0,0.00010898,2]
[335260393,1724052638545,-500.0,0.00010898,2]
[335260394,1724052638554,-508.957471,0.00010898,2]
[335260395,1724052638563,-500.0,0.00010898,2]
[335260396,1724052638572,-500.0,0.00010898,2]
[335260397,1724052638581,-500.0,0.00010898,2]
[335260398,1724052638590,-500.0,0.00010898,2]
[335260399,1724052638599,-500.0,0.00010898,2]
[335260400,1724052638608,-500.0,0.00010898,2]
[335260401,1724052638618,-334.60613973,0.00010898,2]
[335260402,1724052638627,-500.99740208,0.00010898,2]
[335260403,1724052638636,-503.79313234,0.00010898,2]
[335260404,1724052638646,-500.0,0.00010898,2]
[335260405,1724052638655,-500.0,0.00010898,2]
[335260406,1724052638664,-500.0,0.00010898,2]
[335260407,1724052638673,-500.0,0.00010898,2]
[335260408,1724052638683,-502.65614441,0.00010898,2]
[335260409,1724052638692,-583.62756206,0.00010898,2]
[335260410,1724052638701,-500.0,0.00010898,2]
[335260411,1724052638710,-204.40614923,0.00010898,2]
[335260412,1724052638720,-500.0,0.00010898,2]
[335260413,1724052638733,-500.0,0.00010898,2]
[335260414,1724052638743,-507.3460743,0.00010898,2]
[335260415,1724052638752,-503.25097775,0.00010898,2]
[335260416,1724052638761,-503.55311279,0.00010898,2]
[335260417,1724052638772,-500.51936171,0.00010898,2]
[335260418,1724052638782,-500.0,0.00010898,2]
[335260419,1724052638791,-505.84477138,0.00010898,2]
[335260420,1724052638801,-500.0,0.00010898,2]
[335260421,1724052638812,-500.0,0.00010898,2]
[335260422,1724052638822,-500.0,0.00010898,2]
[335260423,1724052638832,-504.19413032,0.00010898,2]
[335260424,1724052638842,-279.62496763,0.00010898,2]
[335260425,1724052638851,-500.0,0.00010898,2]
[335260426,1724052638860,-505.34744998,0.00010898,2]
[335260427,1724052638870,-500.0,0.00010898,2]
[335260428,1724052638879,-500.0,0.00010898,2]
[335260429,1724052638888,-500.0,0.00010898,2]
[335260430,1724052638898,-501.53746308,0.00010898,2]
[335260431,1724052638907,-266.67118502,0.00010898,2]
[335260432,1724052638916,-1279.57,0.00010898,2]
[335260433,1724052638925,-500.0,0.00010898,2]
[335260434,1724052638935,-500.0,0.00010898,2]